[Event "Titled Tuesday Blitz March 15 Late 2022"]
[White "Tang, Andrew"]
[Black "Garriga Cazorla, Pere"]
[WhiteFideId "2059630"]
[BlackFideId "32011601"]
[WhiteElo "2584"]
[BlackElo "2458"]
[Result "1-0"]
[Round "03"]
[TimeControl "180+1"]
[Date "2022.03.15"]
[WhiteClock "0:00:25"]
[BlackClock "0:00:36"]

1. d4 {[%clk 0:02:54]}  Nf6 {[%clk 0:03:00]} 2. c4 {[%clk 0:02:54]}  e6 {[%clk 0:03:00]} 3. Nc3 {[%clk 0:02:54]}  Bb4 {[%clk 0:03:00]} 4. Qc2 {[%clk 0:02:54]}  d5 {[%clk 0:03:00]} 5. cxd5 {[%clk 0:02:54]}  exd5 {[%clk 0:03:01]} 6. Bg5 {[%clk 0:02:55]}  h6 {[%clk 0:03:02]} 7. Bh4 {[%clk 0:02:55]}  Nc6 {[%clk 0:03:02]} 8. e3 {[%clk 0:02:55]}  g5 {[%clk 0:03:02]} 9. Bg3 {[%clk 0:02:55]}  h5 {[%clk 0:03:02]} 10. h3 {[%clk 0:02:55]}  Ne4 {[%clk 0:03:01]} 11. Bh2 {[%clk 0:02:55]}  Qe7 {[%clk 0:03:00]} 12. Bb5 {[%clk 0:02:55]}  Bd7 {[%clk 0:02:55]} 13. Ne2 {[%clk 0:02:53]}  a6 {[%clk 0:02:54]} 14. Bd3 {[%clk 0:02:53]}  Nxc3 {[%clk 0:02:40]} 15. bxc3 {[%clk 0:02:50]}  Bd6 {[%clk 0:02:40]} 16. Bxd6 {[%clk 0:02:42]}  Qxd6 {[%clk 0:02:39]} 17. Rb1 {[%clk 0:02:33]}  b5 {[%clk 0:02:38]} 18. O-O {[%clk 0:02:28]}  Ne7 {[%clk 0:02:33]} 19. e4 {[%clk 0:02:25]}  dxe4 {[%clk 0:02:31]} 20. Bxe4 {[%clk 0:02:26]}  Rc8 {[%clk 0:02:31]} 21. Rfe1 {[%clk 0:02:20]}  h4 {[%clk 0:02:20]} 22. Qd2 {[%clk 0:02:16]}  f6 {[%clk 0:02:15]} 23. Nc1 {[%clk 0:02:10]}  c5 {[%clk 0:02:09]} 24. Qe2 {[%clk 0:01:26]}  cxd4 {[%clk 0:02:04]} 25. Nb3 {[%clk 0:01:23]}  Kf7 {[%clk 0:01:46]} 26. Rbd1 {[%clk 0:01:20]}  Rc4 {[%clk 0:01:23]} 27. Nxd4 {[%clk 0:01:16]}  Qe5 {[%clk 0:01:00]} 28. Nf3 {[%clk 0:01:00]}  Rxe4 {[%clk 0:00:51]} 29. Nxe5+ {[%clk 0:00:44]}  Rxe5 {[%clk 0:00:51]} 30. Qd3 {[%clk 0:00:30]}  Bf5 {[%clk 0:00:48]} 31. Qd6 {[%clk 0:00:29]}  Rxe1+ {[%clk 0:00:41]} 32. Rxe1 {[%clk 0:00:30]}  Ng6 {[%clk 0:00:41]} 33. Qc7+ {[%clk 0:00:28]}  Kf8 {[%clk 0:00:41]} 34. Rd1 {[%clk 0:00:25]}  Kg8 {[%clk 0:00:36]} 35. Rd8+ {[%clk 0:00:25]}  Nf8 {[%clk 0:00:36]} 36. Qe7 {[%clk 0:00:25]} 1-0


[Site "https://www.chess.com"]

[Event "Titled Tuesday Blitz March 15 Late 2022"]
[White "Tari, Aryan"]
[Black "Rastbod, Ali"]
[WhiteFideId "1510045"]
[BlackFideId "12567477"]
[WhiteElo "2567"]
[BlackElo "2200"]
[Result "1-0"]
[Round "03"]
[TimeControl "180+1"]
[Date "2022.03.15"]
[WhiteClock "0:00:53"]
[BlackClock "0:00:03"]

1. e4 {[%clk 0:02:58]}  e6 {[%clk 0:02:59]} 2. Qe2 {[%clk 0:02:55]}  c5 {[%clk 0:02:51]} 3. Nf3 {[%clk 0:02:49]}  Nc6 {[%clk 0:02:52]} 4. g3 {[%clk 0:02:49]}  g6 {[%clk 0:02:51]} 5. Bg2 {[%clk 0:02:50]}  Bg7 {[%clk 0:02:51]} 6. O-O {[%clk 0:02:50]}  Nge7 {[%clk 0:02:51]} 7. c3 {[%clk 0:02:50]}  O-O {[%clk 0:02:47]} 8. d3 {[%clk 0:02:46]}  d6 {[%clk 0:02:46]} 9. h4 {[%clk 0:02:46]}  h6 {[%clk 0:02:42]} 10. Rd1 {[%clk 0:02:44]}  e5 {[%clk 0:02:20]} 11. Na3 {[%clk 0:02:43]}  Bg4 {[%clk 0:02:18]} 12. Nc4 {[%clk 0:02:42]}  f5 {[%clk 0:02:17]} 13. Ne3 {[%clk 0:02:41]}  Bh5 {[%clk 0:02:18]} 14. Re1 {[%clk 0:02:05]}  f4 {[%clk 0:02:17]} 15. g4 {[%clk 0:02:01]}  fxe3 {[%clk 0:02:15]} 16. gxh5 {[%clk 0:02:02]}  exf2+ {[%clk 0:02:14]} 17. Qxf2 {[%clk 0:02:03]}  gxh5 {[%clk 0:02:14]} 18. Bh3 {[%clk 0:01:59]}  Qe8 {[%clk 0:01:59]} 19. Kh2 {[%clk 0:01:57]}  Qf7 {[%clk 0:01:55]} 20. Rf1 {[%clk 0:01:57]}  Ng6 {[%clk 0:01:50]} 21. Bf5 {[%clk 0:01:52]}  Nce7 {[%clk 0:01:48]} 22. Bh3 {[%clk 0:01:49]}  Nf4 {[%clk 0:01:43]} 23. Qg3 {[%clk 0:01:49]}  Nxh3 {[%clk 0:01:20]} 24. Qxh3 {[%clk 0:01:50]}  Ng6 {[%clk 0:01:15]} 25. Be3 {[%clk 0:01:43]}  Nf4 {[%clk 0:01:14]} 26. Qg3 {[%clk 0:01:41]}  Kh7 {[%clk 0:01:10]} 27. Bxf4 {[%clk 0:01:41]}  Qxf4 {[%clk 0:01:03]} 28. Ng5+ {[%clk 0:01:40]}  hxg5 {[%clk 0:00:52]} 29. Rxf4 {[%clk 0:01:38]}  gxf4 {[%clk 0:00:24]} 30. Qg5 {[%clk 0:01:39]}  Rf6 {[%clk 0:00:18]} 31. Rg1 {[%clk 0:01:37]}  Rg8 {[%clk 0:00:18]} 32. Qxh5+ {[%clk 0:01:37]}  Bh6 {[%clk 0:00:19]} 33. Rxg8 {[%clk 0:01:34]}  Kxg8 {[%clk 0:00:19]} 34. Qe8+ {[%clk 0:01:34]}  Bf8 {[%clk 0:00:18]} 35. Kg2 {[%clk 0:01:30]}  f3+ {[%clk 0:00:18]} 36. Kf2 {[%clk 0:01:31]}  Kg7 {[%clk 0:00:19]} 37. a4 {[%clk 0:01:12]}  b6 {[%clk 0:00:18]} 38. b4 {[%clk 0:01:10]}  cxb4 {[%clk 0:00:17]} 39. cxb4 {[%clk 0:01:11]}  Kh7 {[%clk 0:00:06]} 40. Qd7+ {[%clk 0:01:06]}  Kg8 {[%clk 0:00:05]} 41. Qd8 {[%clk 0:01:02]}  Rf7 {[%clk 0:00:04]} 42. Qg5+ {[%clk 0:01:00]}  Kh7 {[%clk 0:00:04]} 43. h5 {[%clk 0:00:58]}  Kh8 {[%clk 0:00:02]} 44. Qg6 {[%clk 0:00:55]}  Rg7 {[%clk 0:00:02]} 45. Qh6+ {[%clk 0:00:54]}  Kg8 {[%clk 0:00:02]} 46. Qe6+ {[%clk 0:00:55]}  Kh8 {[%clk 0:00:02]} 47. Kxf3 {[%clk 0:00:53]}  Be7 {[%clk 0:00:02]} 48. h6 {[%clk 0:00:53]}  Rh7 {[%clk 0:00:03]} 49. Qc8+ {[%clk 0:00:53]} 1-0


[Site "https://www.chess.com"]

[Event "Titled Tuesday Blitz March 15 Late 2022"]
[White "Urazayev, Arystanbek"]
[Black "P., Komal Kishore"]
[WhiteFideId "13709810"]
[BlackFideId "5016703"]
[WhiteElo "2393"]
[BlackElo "2128"]
[Result "1-0"]
[Round "03"]
[TimeControl "180+1"]
[Date "2022.03.16"]
[WhiteClock "0:02:27"]
[BlackClock "0:01:54"]

1. d4 {[%clk 0:02:59]}  c6 {[%clk 0:03:00]} 2. c4 {[%clk 0:02:58]}  d5 {[%clk 0:03:01]} 3. Nf3 {[%clk 0:02:58]}  Nf6 {[%clk 0:03:01]} 4. Nc3 {[%clk 0:02:59]}  dxc4 {[%clk 0:03:00]} 5. e4 {[%clk 0:02:59]}  b5 {[%clk 0:03:00]} 6. Be2 {[%clk 0:02:56]}  b4 {[%clk 0:02:57]} 7. Na4 {[%clk 0:02:56]}  Nxe4 {[%clk 0:02:57]} 8. Bxc4 {[%clk 0:02:56]}  e6 {[%clk 0:02:49]} 9. O-O {[%clk 0:02:51]}  Be7 {[%clk 0:02:42]} 10. Bf4 {[%clk 0:02:46]}  O-O {[%clk 0:02:38]} 11. Rc1 {[%clk 0:02:43]}  Nd7 {[%clk 0:02:36]} 12. Bd3 {[%clk 0:02:39]}  Ndf6 {[%clk 0:02:31]} 13. Ne5 {[%clk 0:02:39]}  c5 {[%clk 0:02:21]} 14. dxc5 {[%clk 0:02:30]}  Qa5 {[%clk 0:01:54]} 15. Nc6 {[%clk 0:02:27]} 1-0


[Site "https://www.chess.com"]

[Event "Titled Tuesday Blitz March 15 Late 2022"]
[White "Yang, Kaiqi"]
[Black "Bortnyk, Olexandr"]
[WhiteFideId "8604398"]
[BlackFideId "14120828"]
[WhiteElo "2373"]
[BlackElo "2723"]
[Result "1-0"]
[Round "03"]
[TimeControl "180+1"]
[Date "2022.03.15"]
[WhiteClock "0:00:09"]
[BlackClock "0:00:25"]

1. e4 {[%clk 0:03:00]}  Nf6 {[%clk 0:02:09]} 2. e5 {[%clk 0:02:59]}  Nd5 {[%clk 0:02:04]} 3. d4 {[%clk 0:02:58]}  d6 {[%clk 0:02:04]} 4. Nf3 {[%clk 0:02:58]}  dxe5 {[%clk 0:02:04]} 5. Nxe5 {[%clk 0:02:58]}  c6 {[%clk 0:02:05]} 6. Bc4 {[%clk 0:02:54]}  Nd7 {[%clk 0:02:01]} 7. Nf3 {[%clk 0:02:53]}  N7f6 {[%clk 0:02:01]} 8. h3 {[%clk 0:02:52]}  Bf5 {[%clk 0:02:01]} 9. c3 {[%clk 0:02:50]}  e6 {[%clk 0:02:01]} 10. O-O {[%clk 0:02:50]}  Bd6 {[%clk 0:02:02]} 11. Re1 {[%clk 0:02:49]}  O-O {[%clk 0:02:02]} 12. Bb3 {[%clk 0:02:46]}  Qc7 {[%clk 0:02:02]} 13. Nbd2 {[%clk 0:02:45]}  Rad8 {[%clk 0:02:00]} 14. Nc4 {[%clk 0:02:44]}  Bf4 {[%clk 0:01:59]} 15. Nce5 {[%clk 0:02:42]}  h6 {[%clk 0:01:57]} 16. Bxf4 {[%clk 0:02:29]}  Nxf4 {[%clk 0:01:58]} 17. Qc1 {[%clk 0:02:27]}  Nd3 {[%clk 0:01:58]} 18. Nxd3 {[%clk 0:02:27]}  Bxd3 {[%clk 0:01:59]} 19. Ne5 {[%clk 0:02:26]}  Bh7 {[%clk 0:01:55]} 20. Re3 {[%clk 0:02:16]}  Nd7 {[%clk 0:01:49]} 21. Nxf7 {[%clk 0:01:53]}  Rxf7 {[%clk 0:01:47]} 22. Bxe6 {[%clk 0:01:53]}  Nf6 {[%clk 0:01:42]} 23. Qe1 {[%clk 0:01:27]}  Kf8 {[%clk 0:01:41]} 24. Bxf7 {[%clk 0:01:26]}  Qxf7 {[%clk 0:01:42]} 25. Qe2 {[%clk 0:01:25]}  Rd7 {[%clk 0:01:38]} 26. Re1 {[%clk 0:01:24]}  Bg6 {[%clk 0:01:39]} 27. Qf3 {[%clk 0:01:18]}  Qxa2 {[%clk 0:01:37]} 28. Qg3 {[%clk 0:00:45]}  Kf7 {[%clk 0:01:28]} 29. Qb8 {[%clk 0:00:39]}  Qxb2 {[%clk 0:01:29]} 30. Re8 {[%clk 0:00:38]}  Qa3 {[%clk 0:01:19]} 31. c4 {[%clk 0:00:20]}  Qd6 {[%clk 0:01:17]} 32. Qxd6 {[%clk 0:00:14]}  Bf5 {[%clk 0:01:10]} 33. Qe5 {[%clk 0:00:13]}  Kg6 {[%clk 0:01:07]} 34. Re7 {[%clk 0:00:12]}  Rd8 {[%clk 0:01:08]} 35. g4 {[%clk 0:00:12]}  Bd3 {[%clk 0:01:08]} 36. f4 {[%clk 0:00:11]}  Rf8 {[%clk 0:01:07]} 37. g5 {[%clk 0:00:11]}  Nh5 {[%clk 0:01:06]} 38. gxh6 {[%clk 0:00:11]}  gxh6 {[%clk 0:01:06]} 39. Re6+ {[%clk 0:00:10]}  Nf6 {[%clk 0:01:05]} 40. Kh2 {[%clk 0:00:10]}  Bxc4 {[%clk 0:00:59]} 41. Rg1+ {[%clk 0:00:10]}  Kh7 {[%clk 0:00:59]} 42. Re7+ {[%clk 0:00:10]}  Kh8 {[%clk 0:00:58]} 43. Qc7 {[%clk 0:00:09]}  Rg8 {[%clk 0:00:28]} 44. Reg7 {[%clk 0:00:09]}  Ne8 {[%clk 0:00:25]} 45. Rh7# {[%clk 0:00:09]} 1-0


[Site "https://www.chess.com"]

[Event "Titled Tuesday Blitz March 15 Late 2022"]
[White "Yeshchenko, Uliana"]
[Black "Solon, Nathan"]
[WhiteFideId "14187272"]
[BlackFideId "2017229"]
[WhiteElo "1881"]
[BlackElo "2561"]
[Result "0-1"]
[Round "03"]
[TimeControl "180+1"]
[Date "2022.03.16"]
[WhiteClock "0:00:04"]
[BlackClock "0:01:02"]

1. d4 {[%clk 0:03:00]}  d5 {[%clk 0:02:58]} 2. c4 {[%clk 0:03:00]}  e6 {[%clk 0:02:57]} 3. Nc3 {[%clk 0:03:00]}  c5 {[%clk 0:02:58]} 4. cxd5 {[%clk 0:02:55]}  cxd4 {[%clk 0:02:58]} 5. Qxd4 {[%clk 0:02:40]}  Nc6 {[%clk 0:02:57]} 6. Qa4 {[%clk 0:02:31]}  exd5 {[%clk 0:02:57]} 7. g3 {[%clk 0:02:28]}  d4 {[%clk 0:02:54]} 8. Ne4 {[%clk 0:02:23]}  Nf6 {[%clk 0:02:46]} 9. Nxf6+ {[%clk 0:02:13]}  Qxf6 {[%clk 0:02:47]} 10. Bg2 {[%clk 0:02:13]}  Bb4+ {[%clk 0:02:43]} 11. Kf1 {[%clk 0:02:06]}  Bd7 {[%clk 0:02:31]} 12. Bf4 {[%clk 0:01:53]}  O-O {[%clk 0:02:28]} 13. Nf3 {[%clk 0:01:49]}  Rfe8 {[%clk 0:02:25]} 14. Qc2 {[%clk 0:01:44]}  Rac8 {[%clk 0:02:23]} 15. Ng5 {[%clk 0:01:35]}  Bf5 {[%clk 0:02:16]} 16. Qd1 {[%clk 0:01:28]}  h6 {[%clk 0:02:11]} 17. Nf3 {[%clk 0:01:24]}  d3 {[%clk 0:02:00]} 18. exd3 {[%clk 0:01:13]}  Rcd8 {[%clk 0:02:00]} 19. Kg1 {[%clk 0:00:52]}  Qxb2 {[%clk 0:01:54]} 20. Rb1 {[%clk 0:00:33]}  Qxa2 {[%clk 0:01:52]} 21. Ra1 {[%clk 0:00:34]}  Qb2 {[%clk 0:01:44]} 22. Rb1 {[%clk 0:00:33]}  Qc3 {[%clk 0:01:39]} 23. Nh4 {[%clk 0:00:21]}  Bxd3 {[%clk 0:01:36]} 24. Rc1 {[%clk 0:00:20]}  Qd4 {[%clk 0:01:26]} 25. Qb3 {[%clk 0:00:16]}  Bc5 {[%clk 0:01:07]} 26. Qa2 {[%clk 0:00:13]}  Re2 {[%clk 0:01:03]} 27. Nf3 {[%clk 0:00:04]}  Qxf2# {[%clk 0:01:02]} 0-1


[Site "https://www.chess.com"]

[Event "Titled Tuesday Blitz March 15 Late 2022"]
[White "Zomorrodian, Eilia"]
[Black "Perez Torres, Nabi Isaias"]
[WhiteFideId "12551805"]
[BlackFideId "5120373"]
[WhiteElo "2098"]
[BlackElo "1755"]
[Result "1-0"]
[Round "03"]
[TimeControl "180+1"]
[Date "2022.03.16"]
[WhiteClock "0:00:43"]
[BlackClock "0:00:14"]

1. e4 {[%clk 0:03:00]}  c5 {[%clk 0:02:59]} 2. Nf3 {[%clk 0:03:01]}  d6 {[%clk 0:02:59]} 3. Bb5+ {[%clk 0:03:01]}  Bd7 {[%clk 0:02:59]} 4. Bxd7+ {[%clk 0:03:01]}  Qxd7 {[%clk 0:03:00]} 5. O-O {[%clk 0:03:02]}  Nc6 {[%clk 0:02:59]} 6. c3 {[%clk 0:03:02]}  d5 {[%clk 0:02:58]} 7. d4 {[%clk 0:03:03]}  dxe4 {[%clk 0:02:54]} 8. Ng5 {[%clk 0:02:57]}  cxd4 {[%clk 0:02:50]} 9. cxd4 {[%clk 0:02:56]}  Qxd4 {[%clk 0:02:43]} 10. Qb3 {[%clk 0:02:55]}  Qf6 {[%clk 0:01:21]} 11. Qxb7 {[%clk 0:02:31]}  Rb8 {[%clk 0:01:21]} 12. Qc7 {[%clk 0:02:32]}  e5 {[%clk 0:00:47]} 13. Nxf7 {[%clk 0:02:15]}  Bc5 {[%clk 0:00:35]} 14. Nc3 {[%clk 0:01:51]}  Nge7 {[%clk 0:00:33]} 15. Nxe4 {[%clk 0:01:27]}  Qxf7 {[%clk 0:00:33]} 16. Nxc5 {[%clk 0:01:26]}  Rd8 {[%clk 0:00:31]} 17. Bg5 {[%clk 0:01:21]}  O-O {[%clk 0:00:30]} 18. Nd7 {[%clk 0:01:04]}  Nd5 {[%clk 0:00:26]} 19. Qxc6 {[%clk 0:01:00]}  Rxd7 {[%clk 0:00:27]} 20. Rad1 {[%clk 0:00:55]}  h6 {[%clk 0:00:27]} 21. Bh4 {[%clk 0:00:54]}  g5 {[%clk 0:00:26]} 22. Bg3 {[%clk 0:00:54]}  Re8 {[%clk 0:00:26]} 23. Rfe1 {[%clk 0:00:53]}  e4 {[%clk 0:00:25]} 24. Rd4 {[%clk 0:00:51]}  Red8 {[%clk 0:00:19]} 25. Rdxe4 {[%clk 0:00:49]}  Nf6 {[%clk 0:00:19]} 26. Re6 {[%clk 0:00:45]}  Ng4 {[%clk 0:00:17]} 27. h3 {[%clk 0:00:44]}  Rd1 {[%clk 0:00:15]} 28. hxg4 {[%clk 0:00:43]}  Rxe1+ {[%clk 0:00:14]} 29. Rxe1 {[%clk 0:00:43]} 1-0


[Site "https://www.chess.com"]

[Event "Titled Tuesday Blitz March 15 Late 2022"]
[White "Arabidze, Meri"]
[Black "Fishbein, Mitch"]
[WhiteFideId "13604040"]
[BlackFideId "30922917"]
[WhiteElo "2335"]
[BlackElo "1939"]
[Result "1-0"]
[Round "04"]
[TimeControl "180+1"]
[Date "2022.03.16"]
[WhiteClock "0:00:39"]
[BlackClock "0:00:02"]

1. d4 {[%clk 0:03:00]}  Nf6 {[%clk 0:02:59]} 2. Nf3 {[%clk 0:03:01]}  g6 {[%clk 0:02:51]} 3. g3 {[%clk 0:03:02]}  Bg7 {[%clk 0:02:52]} 4. Bg2 {[%clk 0:03:02]}  O-O {[%clk 0:02:52]} 5. O-O {[%clk 0:03:03]}  d6 {[%clk 0:02:53]} 6. a4 {[%clk 0:03:04]}  a5 {[%clk 0:02:52]} 7. Nc3 {[%clk 0:03:03]}  Nc6 {[%clk 0:02:51]} 8. Re1 {[%clk 0:03:04]}  e5 {[%clk 0:02:51]} 9. e4 {[%clk 0:03:05]}  exd4 {[%clk 0:02:49]} 10. Nxd4 {[%clk 0:03:05]}  Nxd4 {[%clk 0:02:49]} 11. Qxd4 {[%clk 0:03:06]}  Re8 {[%clk 0:02:49]} 12. Qd1 {[%clk 0:02:57]}  Bd7 {[%clk 0:02:42]} 13. Nb5 {[%clk 0:02:49]}  Bc6 {[%clk 0:02:41]} 14. f3 {[%clk 0:02:39]}  Nd7 {[%clk 0:01:57]} 15. Nd4 {[%clk 0:02:30]}  Nc5 {[%clk 0:01:35]} 16. c3 {[%clk 0:02:30]}  Bd7 {[%clk 0:01:33]} 17. Be3 {[%clk 0:02:25]}  h5 {[%clk 0:01:22]} 18. Qc2 {[%clk 0:02:23]}  h4 {[%clk 0:01:22]} 19. g4 {[%clk 0:02:23]}  Be5 {[%clk 0:01:12]} 20. h3 {[%clk 0:02:19]}  Bg3 {[%clk 0:01:12]} 21. Re2 {[%clk 0:02:13]}  Qf6 {[%clk 0:01:12]} 22. Qd2 {[%clk 0:02:05]}  Bxa4 {[%clk 0:00:41]} 23. Bg5 {[%clk 0:01:47]}  Qg7 {[%clk 0:00:40]} 24. Bf4 {[%clk 0:01:21]}  Bxf4 {[%clk 0:00:37]} 25. Qxf4 {[%clk 0:01:22]}  Bd7 {[%clk 0:00:26]} 26. Qg5 {[%clk 0:01:21]}  Ne6 {[%clk 0:00:17]} 27. Nxe6 {[%clk 0:01:19]}  Bxe6 {[%clk 0:00:18]} 28. Qxh4 {[%clk 0:01:16]}  Qe5 {[%clk 0:00:17]} 29. Qh6 {[%clk 0:01:11]}  a4 {[%clk 0:00:12]} 30. f4 {[%clk 0:01:07]}  Qg7 {[%clk 0:00:12]} 31. Qg5 {[%clk 0:00:56]}  a3 {[%clk 0:00:11]} 32. Rxa3 {[%clk 0:00:46]}  Rxa3 {[%clk 0:00:11]} 33. bxa3 {[%clk 0:00:47]}  Qxc3 {[%clk 0:00:11]} 34. f5 {[%clk 0:00:42]}  Qc5+ {[%clk 0:00:08]} 35. Rf2 {[%clk 0:00:42]}  Bc4 {[%clk 0:00:03]} 36. Qh6 {[%clk 0:00:42]}  Qe5 {[%clk 0:00:02]} 37. f6 {[%clk 0:00:39]} 1-0


[Site "https://www.chess.com"]

[Event "Titled Tuesday Blitz March 15 Late 2022"]
[White "Araujo Filho, Luiz Antonio Coel"]
[Black "Zotova, Anastasia"]
[WhiteFideId "2130661"]
[BlackFideId "34124907"]
[WhiteElo "2197"]
[BlackElo "1860"]
[Result "1-0"]
[Round "04"]
[TimeControl "180+1"]
[Date "2022.03.16"]
[WhiteClock "0:00:08"]
[BlackClock "0:00:06"]

1. d4 {[%clk 0:02:52]}  d5 {[%clk 0:02:58]} 2. Nf3 {[%clk 0:02:53]}  Nf6 {[%clk 0:02:56]} 3. e3 {[%clk 0:02:53]}  e6 {[%clk 0:02:52]} 4. Bd3 {[%clk 0:02:52]}  c5 {[%clk 0:02:52]} 5. c3 {[%clk 0:02:53]}  Bd6 {[%clk 0:02:51]} 6. Nbd2 {[%clk 0:02:53]}  Nbd7 {[%clk 0:02:50]} 7. Qe2 {[%clk 0:02:54]}  b6 {[%clk 0:02:50]} 8. e4 {[%clk 0:02:54]}  dxe4 {[%clk 0:02:47]} 9. Nxe4 {[%clk 0:02:55]}  Nxe4 {[%clk 0:02:44]} 10. Bxe4 {[%clk 0:02:54]}  Rb8 {[%clk 0:02:44]} 11. O-O {[%clk 0:02:54]}  Nf6 {[%clk 0:02:41]} 12. Bg5 {[%clk 0:02:51]}  Bb7 {[%clk 0:02:35]} 13. Bxb7 {[%clk 0:02:21]}  Rxb7 {[%clk 0:02:34]} 14. dxc5 {[%clk 0:02:17]}  Bxc5 {[%clk 0:02:30]} 15. Rad1 {[%clk 0:02:16]}  Qe7 {[%clk 0:02:23]} 16. Qb5+ {[%clk 0:02:13]}  Kf8 {[%clk 0:02:15]} 17. Ne5 {[%clk 0:02:10]}  h6 {[%clk 0:02:03]} 18. Nd7+ {[%clk 0:01:03]}  Kg8 {[%clk 0:02:02]} 19. Nxc5 {[%clk 0:00:52]}  bxc5 {[%clk 0:01:53]} 20. Bxf6 {[%clk 0:00:52]}  gxf6 {[%clk 0:01:53]} 21. Qc6 {[%clk 0:00:45]}  Kh7 {[%clk 0:01:46]} 22. Rd3 {[%clk 0:00:42]}  Rb6 {[%clk 0:01:36]} 23. Qd7 {[%clk 0:00:31]}  Re8 {[%clk 0:01:33]} 24. b3 {[%clk 0:00:30]}  Rb7 {[%clk 0:01:26]} 25. Qc6 {[%clk 0:00:30]}  Rb6 {[%clk 0:01:24]} 26. Qe4+ {[%clk 0:00:29]}  f5 {[%clk 0:01:24]} 27. Qf4 {[%clk 0:00:26]}  Rg8 {[%clk 0:01:07]} 28. Rfd1 {[%clk 0:00:19]}  Qf6 {[%clk 0:00:42]} 29. Rd7 {[%clk 0:00:18]}  e5 {[%clk 0:00:39]} 30. Qc4 {[%clk 0:00:17]}  Re6 {[%clk 0:00:36]} 31. Qxc5 {[%clk 0:00:16]}  Qg5 {[%clk 0:00:31]} 32. g3 {[%clk 0:00:10]}  f4 {[%clk 0:00:26]} 33. Rxf7+ {[%clk 0:00:09]}  Kh8 {[%clk 0:00:27]} 34. Rdd7 {[%clk 0:00:09]}  Qg6 {[%clk 0:00:19]} 35. Rh7+ {[%clk 0:00:05]}  Qxh7 {[%clk 0:00:19]} 36. Rxh7+ {[%clk 0:00:06]}  Kxh7 {[%clk 0:00:20]} 37. Kf1 {[%clk 0:00:04]}  fxg3 {[%clk 0:00:19]} 38. hxg3 {[%clk 0:00:04]}  Rg7 {[%clk 0:00:18]} 39. Ke2 {[%clk 0:00:04]}  Rf7 {[%clk 0:00:18]} 40. f3 {[%clk 0:00:04]}  h5 {[%clk 0:00:17]} 41. Qd5 {[%clk 0:00:04]}  Ref6 {[%clk 0:00:17]} 42. Qe4+ {[%clk 0:00:04]}  Kh6 {[%clk 0:00:16]} 43. c4 {[%clk 0:00:05]}  Rf5 {[%clk 0:00:10]} 44. c5 {[%clk 0:00:05]}  h4 {[%clk 0:00:10]} 45. gxh4 {[%clk 0:00:05]}  Rf4 {[%clk 0:00:11]} 46. Qxe5 {[%clk 0:00:04]}  Rxf3 {[%clk 0:00:11]} 47. Qe6+ {[%clk 0:00:04]}  R3f6 {[%clk 0:00:10]} 48. Qe3+ {[%clk 0:00:04]}  Kh7 {[%clk 0:00:10]} 49. b4 {[%clk 0:00:04]}  Rc6 {[%clk 0:00:09]} 50. Qe4+ {[%clk 0:00:04]}  Rg6 {[%clk 0:00:09]} 51. c6 {[%clk 0:00:04]}  Rf6 {[%clk 0:00:09]} 52. b5 {[%clk 0:00:04]}  Re6 {[%clk 0:00:09]} 53. Kd3 {[%clk 0:00:04]}  Rxe4 {[%clk 0:00:09]} 54. Kxe4 {[%clk 0:00:05]}  Rg7 {[%clk 0:00:09]} 55. Kd5 {[%clk 0:00:05]}  Kg6 {[%clk 0:00:10]} 56. Kd6 {[%clk 0:00:06]}  Kf6 {[%clk 0:00:10]} 57. c7 {[%clk 0:00:06]}  Rg8 {[%clk 0:00:10]} 58. Kd7 {[%clk 0:00:07]}  Rg7+ {[%clk 0:00:11]} 59. Kd8 {[%clk 0:00:07]}  Rg8+ {[%clk 0:00:11]} 60. Kd7 {[%clk 0:00:07]}  Rg7+ {[%clk 0:00:12]} 61. Kd6 {[%clk 0:00:07]}  Rg8 {[%clk 0:00:12]} 62. a4 {[%clk 0:00:08]}  Kf5 {[%clk 0:00:09]} 63. a5 {[%clk 0:00:07]}  Ke4 {[%clk 0:00:07]} 64. b6 {[%clk 0:00:08]}  Rg6+ {[%clk 0:00:07]} 65. Kd7 {[%clk 0:00:07]}  Rg7+ {[%clk 0:00:07]} 66. Kc6 {[%clk 0:00:08]}  Rg6+ {[%clk 0:00:06]} 67. Kb7 {[%clk 0:00:08]} 1-0


[Site "https://www.chess.com"]

[Event "Titled Tuesday Blitz March 15 Late 2022"]
[White "Aydin, Gulenay"]
[Black "Najer, Evgeniy"]
[WhiteFideId "34557431"]
[BlackFideId "4118987"]
[WhiteElo "1429"]
[BlackElo "2562"]
[Result "0-1"]
[Round "04"]
[TimeControl "180+1"]
[Date "2022.03.16"]
[WhiteClock "0:00:01"]
[BlackClock "0:00:45"]

1. e4 {[%clk 0:03:00]}  c5 {[%clk 0:02:57]} 2. Nf3 {[%clk 0:03:00]}  e6 {[%clk 0:02:57]} 3. d4 {[%clk 0:02:59]}  cxd4 {[%clk 0:02:57]} 4. Nxd4 {[%clk 0:03:00]}  Nc6 {[%clk 0:02:57]} 5. Nc3 {[%clk 0:03:00]}  Qc7 {[%clk 0:02:56]} 6. g3 {[%clk 0:02:59]}  a6 {[%clk 0:02:54]} 7. Bg2 {[%clk 0:02:59]}  d6 {[%clk 0:02:54]} 8. O-O {[%clk 0:02:59]}  Bd7 {[%clk 0:02:54]} 9. Be3 {[%clk 0:02:57]}  Nf6 {[%clk 0:02:52]} 10. Qe2 {[%clk 0:02:53]}  Be7 {[%clk 0:02:51]} 11. Rad1 {[%clk 0:02:51]}  O-O {[%clk 0:02:49]} 12. a3 {[%clk 0:02:42]}  Rac8 {[%clk 0:02:45]} 13. Nb3 {[%clk 0:02:35]}  Ne5 {[%clk 0:02:41]} 14. h3 {[%clk 0:02:26]}  Nc4 {[%clk 0:02:38]} 15. Bc1 {[%clk 0:02:26]}  Nxa3 {[%clk 0:02:34]} 16. f4 {[%clk 0:02:05]}  Nb5 {[%clk 0:02:30]} 17. Rfe1 {[%clk 0:01:36]}  Nxc3 {[%clk 0:02:29]} 18. bxc3 {[%clk 0:01:37]}  Bb5 {[%clk 0:02:29]} 19. Qf2 {[%clk 0:01:30]}  Qxc3 {[%clk 0:02:26]} 20. e5 {[%clk 0:01:22]}  dxe5 {[%clk 0:02:23]} 21. fxe5 {[%clk 0:01:22]}  Nd5 {[%clk 0:02:23]} 22. Nd4 {[%clk 0:00:51]}  Bc5 {[%clk 0:02:11]} 23. Bxd5 {[%clk 0:00:51]}  exd5 {[%clk 0:02:07]} 24. Be3 {[%clk 0:00:51]}  Bd7 {[%clk 0:01:51]} 25. Kg2 {[%clk 0:00:42]}  Bxd4 {[%clk 0:01:47]} 26. Bxd4 {[%clk 0:00:24]}  Qxc2 {[%clk 0:01:46]} 27. Rd2 {[%clk 0:00:25]}  Qf5 {[%clk 0:01:45]} 28. Qxf5 {[%clk 0:00:17]}  Bxf5 {[%clk 0:01:44]} 29. Rb2 {[%clk 0:00:18]}  b5 {[%clk 0:01:36]} 30. Ra1 {[%clk 0:00:17]}  Rc6 {[%clk 0:01:34]} 31. Rba2 {[%clk 0:00:15]}  Bc8 {[%clk 0:01:32]} 32. Rd2 {[%clk 0:00:11]}  h6 {[%clk 0:01:31]} 33. Be3 {[%clk 0:00:10]}  Bb7 {[%clk 0:01:26]} 34. Kf2 {[%clk 0:00:10]}  Rc4 {[%clk 0:01:26]} 35. Bd4 {[%clk 0:00:07]}  Rfc8 {[%clk 0:01:25]} 36. Ke3 {[%clk 0:00:07]}  Rc2 {[%clk 0:01:24]} 37. Rd3 {[%clk 0:00:05]}  Rg2 {[%clk 0:01:20]} 38. Kf3 {[%clk 0:00:05]}  Rcc2 {[%clk 0:01:16]} 39. Rf1 {[%clk 0:00:04]}  Rgd2 {[%clk 0:01:11]} 40. Ke3 {[%clk 0:00:03]}  Re2+ {[%clk 0:01:09]} 41. Kf3 {[%clk 0:00:03]}  Bc8 {[%clk 0:01:02]} 42. h4 {[%clk 0:00:03]}  h5 {[%clk 0:01:02]} 43. Rfd1 {[%clk 0:00:02]}  Bg4+ {[%clk 0:00:52]} 44. Kf4 {[%clk 0:00:02]}  Re4+ {[%clk 0:00:52]} 45. Kg5 {[%clk 0:00:02]}  Bxd1 {[%clk 0:00:51]} 46. Rxd1 {[%clk 0:00:03]}  Rg4+ {[%clk 0:00:47]} 47. Kxh5 {[%clk 0:00:04]}  Rxg3 {[%clk 0:00:47]} 48. e6 {[%clk 0:00:03]}  Kh7 {[%clk 0:00:46]} 49. exf7 {[%clk 0:00:01]}  g6# {[%clk 0:00:45]} 0-1


[Site "https://www.chess.com"]